fUST/lending_fUST_20241229
["ID","MTS","AMOUNT","RATE_DAILY","PERIOD"]
[346978538,1735446645444,-500.0,9.861e-05,2]
[346978540,1735446645453,-500.0,9.861e-05,2]
[346978542,1735446645462,-502.0493717,9.861e-05,2]
[346978544,1735446645471,-870.4,9.861e-05,2]
[346978546,1735446645480,-560.77130947,9.861e-05,2]
[346978548,1735446645489,-501.18025801,9.861e-05,2]
[346978550,1735446645498,-502.88550786,9.861e-05,2]
[346978552,1735446645507,-727.39,9.861e-05,2]
[346978554,1735446645516,-500.0,9.861e-05,2]
[346978556,1735446645525,-500.0,9.861e-05,2]
[346978557,1735446645534,-502.78631016,9.861e-05,2]
[346978559,1735446645544,-500.0,9.862e-05,2]
[346978561,1735446645553,-500.0,9.862e-05,2]
[346978563,1735446645562,-500.0,9.862e-05,2]
[346978566,1735446645572,-500.0,9.862e-05,2]
[346978567,1735446645581,-500.0,9.862e-05,2]
[346978570,1735446645591,-500.0,9.862e-05,2]
[346978572,1735446645600,-500.0,9.862e-05,2]
[346978574,1735446645609,-500.0,9.862e-05,2]
[346978576,1735446645619,-500.0,9.862e-05,2]
[346978577,1735446645627,-503.1594371,9.862e-05,2]
[346978579,1735446645637,-502.88698765,9.862e-05,2]
[346978582,1735446645646,-500.0,9.862e-05,2]
[346978583,1735446645655,-500.0,9.862e-05,2]
[346978585,1735446645664,-558.68,9.862e-05,2]
[346978587,1735446645673,-500.0,9.862e-05,2]
[346978589,1735446645683,-502.25138844,9.862e-05,2]
[346978591,1735446645692,-504.91536778,9.862e-05,2]
[346978594,1735446645702,-500.0,9.862e-05,2]
[346978596,1735446645711,-420.28,9.862e-05,2]
[346978598,1735446645721,-500.0,9.862e-05,2]
[346978600,1735446645730,-500.0,9.862e-05,2]
[346978602,1735446645739,-500.0,9.862e-05,2]
[346978604,1735446645747,-500.0,9.862e-05,2]
[346978606,1735446645757,-500.0,9.862e-05,2]
[346978608,1735446645766,-1453.82,9.862e-05,2]
[346978610,1735446645775,-503.32136563,9.862e-05,2]
[346978612,1735446645786,-500.0,9.863e-05,2]
[346978614,1735446645795,-263.67,9.863e-05,2]
[346978616,1735446645805,-500.0,9.863e-05,2]
[346978618,1735446645814,-500.0,9.863e-05,2]
[346978620,1735446645823,-509.7152433,9.863e-05,2]
[346978622,1735446645832,-506.06812657,9.863e-05,2]
[346978624,1735446645841,-500.0,9.863e-05,2]
[346978626,1735446645850,-500.0,9.863e-05,2]
[346978628,1735446645860,-505.4169775,9.994e-05,2]
[346978630,1735446645869,-538.09,9.994e-05,2]
[346978632,1735446645879,-500.69563339,9.995e-05,2]
[346978634,1735446645889,-1551.59,9.995e-05,2]
[346978636,1735446645898,-500.0,9.995e-05,2]
[346978638,1735446645907,-500.0,9.995e-05,2]
[346978640,1735446645916,-500.0,9.995e-05,2]
[346978642,1735446645926,-500.0,9.995e-05,2]
[346978644,1735446645935,-431.45151496,9.995e-05,2]
[346978646,1735446645944,-582.92,9.995e-05,2]
[346978648,1735446645953,-2161.09435311,0.00010035,2]
[346978650,1735446645963,-500.0,0.00010128,2]
[346978652,1735446645972,-637.54,0.00010128,2]
[346978654,1735446645980,-562.90320494,0.00010128,2]
[346978656,1735446645990,-500.0,0.00010128,2]
[346978658,1735446645999,-500.0,0.00010128,2]
[346978660,1735446646008,-500.0,0.0001013,2]
[346978662,1735446646017,-500.0,0.0001013,2]
[346978664,1735446646026,-1035.04,0.0001013,2]
[346978666,1735446646035,-594.07,0.0001013,2]
[346978668,1735446646044,-500.0,0.0001013,2]
[346978670,1735446646054,-500.0,0.0001013,2]
[346978672,1735446646062,-500.0,0.0001013,2]
[346978674,1735446646072,-593.08,0.0001013,2]
[346978676,1735446646081,-500.0,0.00010131,2]
[346978678,1735446646090,-500.0,0.00010132,2]
[346978680,1735446646099,-262.87553771,0.00010132,2]
[346978682,1735446646108,-207.84510615,0.00010132,2]
[346978684,1735446646118,-500.0,0.00010132,2]
[346978686,1735446646127,-500.0,0.00010132,2]
[346978688,1735446646136,-500.0,0.00010132,2]
[346978690,1735446646145,-500.0,0.00010132,2]
[346978692,1735446646154,-500.0,0.00010132,2]
[346978694,1735446646164,-500.0,0.00010132,2]
[346978696,1735446646174,-500.0,0.00010132,2]
[346978698,1735446646183,-500.0,0.00010132,2]
[346978700,1735446646192,-500.0,0.00010132,2]
[346978702,1735446646202,-500.0,0.00010132,2]
[346978704,1735446646212,-500.0,0.00010132,2]
[346978706,1735446646222,-500.0,0.00010132,2]
[346978708,1735446646231,-500.0,0.00010132,2]
[346978710,1735446646241,-500.0,0.00010132,2]
[346978712,1735446646251,-500.0,0.00010132,2]
[346978714,1735446646260,-500.0,0.00010132,2]
[346978716,1735446646269,-500.0,0.00010132,2]
[346978718,1735446646278,-239.71506793,0.00010132,2]
[346978720,1735446646289,-500.0,0.00010132,2]
[346978722,1735446646298,-500.0,0.00010132,2]
[346978724,1735446646308,-11324.13,0.00010132,2]
[346978726,1735446646317,-500.0,0.00010132,2]
[346978728,1735446646326,-500.0,0.00010134,2]
[346978730,1735446646336,-500.0,0.00010134,2]
[346978732,1735446646345,-500.0,0.00010135,2]
[346978734,1735446646354,-538.09,0.00010135,2]
[346978736,1735446646363,-514.04524496,0.00010135,2]
[346978738,1735446646372,-500.0,0.00010135,2]
[346978740,1735446646382,-727.39,0.00010135,2]
[346978742,1735446646392,-489.66,0.00010135,2]
[346978744,1735446646402,-292.36703202,0.00010135,2]
[346978746,1735446646416,-258.04,0.00010136,2]
[346978748,1735446646426,-500.0,0.00010136,2]
[346978750,1735446646436,-500.0,0.00010136,2]
[346978752,1735446646445,-500.0,0.00010136,2]
[346978754,1735446646456,-500.0,0.00010136,2]
[346978756,1735446646466,-500.0,0.00010136,2]
[346978758,1735446646475,-638.1759521,0.00010136,2]
[346978760,1735446646484,-500.0,0.00010136,2]
[346978762,1735446646494,-500.0,0.00010136,2]
[346978764,1735446646503,-625.56,0.00010136,2]
[346978766,1735446646512,-500.0,0.00010136,2]
[346978768,1735446646520,-500.0,0.00010136,2]
[346978770,1735446646530,-388.2365937,0.00010136,2]
[346978772,1735446646539,-500.0,0.00010136,2]
[346978774,1735446646548,-500.0,0.00010136,2]
[346978776,1735446646558,-870.4,0.00010136,2]
[346978778,1735446646567,-500.0,0.00010136,2]
[346978780,1735446646576,-500.0,0.00010136,2]
[346978782,1735446646585,-1453.82,0.00010136,2]
[346978784,1735446646595,-500.0,0.00010137,2]
[346978786,1735446646605,-500.0,0.00010137,2]
[346978788,1735446646613,-501.01775287,0.00010171,2]
[346978790,1735446646623,-1551.59,0.00010269,2]
[346978792,1735446646633,-500.0,0.00010269,2]
[346978793,1735446646642,-500.0,0.00010269,2]
[346978794,1735446646651,-151.0,0.00010269,2]
[346978795,1735446646660,-582.92,0.00010269,2]
[346978796,1735446646742,-501.01795844,0.0001027,2]
[346978797,1735446646751,-500.51674004,0.00010279,2]
[346978798,1735446646760,-258.5,0.000104,2]
[346978799,1735446646770,-420.01452682,0.000104,2]
[346978801,1735446646779,-500.0,0.00010402,2]
[346978803,1735446646788,-637.54,0.00010402,2]
[346978805,1735446646797,-500.0,0.00010402,2]
[346978807,1735446646807,-500.0,0.00010402,2]
[346978809,1735446646816,-538.66,0.00010404,2]
[346978811,1735446646825,-500.0,0.00010404,2]
[346978814,1735446646835,-1035.04,0.00010404,2]
[346978816,1735446646844,-594.07,0.00010404,2]
[346978818,1735446646853,-500.0,0.00010404,2]
[346978820,1735446646862,-500.0,0.00010404,2]
[346978822,1735446646871,-500.0,0.00010404,2]
[346978824,1735446646881,-593.08,0.00010404,2]
[346978826,1735446646890,-500.0,0.00010405,2]
[346978828,1735446646899,-500.0,0.00010406,2]
[346978830,1735446646908,-500.0,0.00010406,2]
[346978832,1735446646916,-500.0,0.00010406,2]
[346978834,1735446646926,-556.79130928,0.00010406,2]
[346978836,1735446646935,-500.0,0.00010406,2]
[346978838,1735446646944,-500.0,0.00010406,2]
[346978840,1735446646954,-500.0,0.00010406,2]
[346978842,1735446646963,-500.0,0.00010406,2]
[346978844,1735446646972,-500.0,0.00010406,2]
[346978846,1735446646981,-500.0,0.00010406,2]
[346978848,1735446646990,-500.0,0.00010406,2]
[346978850,1735446646999,-500.0,0.00010406,2]
[346978852,1735446647008,-318.09,0.00010406,2]
[346978854,1735446647017,-500.0,0.00010406,2]
[346978856,1735446647026,-500.0,0.00010406,2]
[346978858,1735446647036,-500.0,0.00010406,2]
[346978860,1735446647045,-500.0,0.00010406,2]
[346978862,1735446647054,-11324.13,0.00010406,2]
[346978864,1735446647063,-500.0,0.00010406,2]
[346978866,1735446647072,-500.0,0.00010408,2]
[346978868,1735446647082,-622.22788343,0.00010408,2]
[346978870,1735446647091,-500.0,0.00010409,2]
[346978872,1735446647100,-727.39,0.00010409,2]
[346978874,1735446647109,-500.0,0.0001041,2]
[346978876,1735446647118,-500.0,0.0001041,2]
[346978878,1735446647127,-500.0,0.0001041,2]
[346978880,1735446647137,-617.67340672,0.0001041,2]
[346978882,1735446647147,-500.0,0.0001041,2]
[346978884,1735446647156,-500.0,0.0001041,2]
[346978886,1735446647165,-538.09,0.0001041,2]
[346978888,1735446647174,-500.0,0.0001041,2]
[346978890,1735446647184,-640.58,0.0001041,2]
[346978892,1735446647192,-500.0,0.0001041,2]
[346978894,1735446647201,-1453.82,0.0001041,2]
[346978896,1735446647211,-500.0,0.00010411,2]
[346978898,1735446647220,-151.0,0.00010411,2]
[346978900,1735446647229,-500.0,0.00010411,2]
[346978902,1735446647238,-2161.09435311,0.00010446,2]
[346978904,1735446647247,-1551.59,0.00010543,2]
[346978906,1735446647256,-500.0,0.00010543,2]
[346978908,1735446647266,-582.92,0.00010543,2]
[346978910,1735446647275,-1890.31247753,0.00010572,2]
[346978912,1735446647284,-500.0,0.00010676,2]
[346978914,1735446647293,-637.54,0.00010676,2]
[346978916,1735446647302,-181.89659154,0.00010676,2]
[346978918,1735446647313,-500.0,0.00010676,2]
[346978920,1735446647322,-500.0,0.00010678,2]
[346978922,1735446647331,-1035.04,0.00010678,2]
[346978924,1735446647340,-594.07,0.00010678,2]
[346978926,1735446647349,-500.0,0.00010678,2]
[346978928,1735446647360,-500.0,0.00010678,2]
[346978930,1735446647368,-500.0,0.00010678,2]
[346978932,1735446647378,-593.08,0.00010678,2]
[346978934,1735446647387,-500.0,0.00010679,2]
[346978936,1735446647396,-500.0,0.0001068,2]
[346978938,1735446647407,-467.88,0.0001068,2]
[346978940,1735446647416,-500.0,0.0001068,2]
[346978942,1735446647426,-500.0,0.0001068,2]
[346978944,1735446647435,-500.0,0.0001068,2]
[346978946,1735446647444,-500.0,0.0001068,2]
[346978948,1735446647454,-500.0,0.0001068,2]
[346978950,1735446647463,-500.0,0.0001068,2]
[346978952,1735446647472,-358.05820474,0.0001068,2]
[346978954,1735446647482,-500.0,0.0001068,2]
[346978956,1735446647492,-626.36158407,0.0001068,2]
[346978958,1735446647500,-500.0,0.0001068,2]
[346978960,1735446647509,-463.54,0.0001068,2]
[346978962,1735446647518,-500.0,0.0001068,2]
[346978964,1735446647528,-500.0,0.0001068,2]
[346978966,1735446647537,-11324.13,0.0001068,2]
[346978968,1735446647546,-500.0,0.0001068,2]
[346978970,1735446647556,-500.0,0.00010682,2]
[346978972,1735446647565,-500.0,0.00010683,2]
[346978973,1735446647575,-727.39,0.00010683,2]
[346978975,1735446647584,-500.0,0.00010684,2]
[346978977,1735446647594,-500.0,0.00010684,2]
[346978979,1735446647603,-500.0,0.00010684,2]
[346978981,1735446647612,-500.0,0.00010684,2]
[346978983,1735446647621,-500.0,0.00010684,2]
[346978985,1735446647631,-500.0,0.00010684,2]
[346978987,1735446647640,-500.0,0.00010684,2]
[346978989,1735446647649,-1453.82,0.00010684,2]
[346978991,1735446647658,-500.0,0.00010685,2]
[346978993,1735446647667,-1551.59,0.00010817,2]
[346978995,1735446647676,-500.0,0.00010817,2]
[346978997,1735446647685,-582.92,0.00010817,2]
[346978999,1735446647695,-2161.09435311,0.00010857,2]
[346979001,1735446647705,-500.0,0.0001095,2]
[346979003,1735446647714,-637.54,0.0001095,2]
[346979005,1735446647723,-500.0,0.0001095,2]
[346979007,1735446647732,-1035.04,0.00010952,2]
[346979009,1735446647742,-594.07,0.00010952,2]
[346979011,1735446647751,-500.0,0.00010952,2]
[346979014,1735446647761,-500.0,0.00010952,2]
[346979016,1735446647771,-500.0,0.00010952,2]
[346979018,1735446647780,-593.08,0.00010952,2]
[346979020,1735446647790,-500.0,0.00010953,2]
[346979022,1735446647799,-500.0,0.00010954,2]
[346979024,1735446647808,-447.8213692,0.00010954,2]
[346979025,1735446647817,-595.87412801,0.00010954,2]
[346979027,1735446647826,-500.0,0.00010954,2]
[346979030,1735446647835,-500.0,0.00010954,2]
[346979032,1735446647845,-500.0,0.00010954,2]
[346979034,1735446647854,-500.0,0.00010954,2]
[346979036,1735446647863,-500.0,0.00010954,2]
[346979038,1735446647872,-500.0,0.00010954,2]
[346979040,1735446647884,-500.0,0.00010954,2]
[346979042,1735446647893,-500.0,0.00010954,2]
[346979044,1735446647903,-11324.13,0.00010954,2]
[346979046,1735446647912,-500.0,0.00010954,2]
[346979048,1735446647922,-500.0,0.00010956,2]
[346979050,1735446647931,-538.09,0.00010957,2]
[346979052,1735446647941,-500.0,0.00010957,2]
[346979054,1735446647950,-727.39,0.00010957,2]
[346979056,1735446647960,-500.0,0.00010958,2]
[346979057,1735446647969,-500.0,0.00010958,2]
[346979059,1735446647978,-500.0,0.00010958,2]
[346979062,1735446647988,-500.0,0.00010958,2]
[346979064,1735446647998,-500.0,0.00010958,2]
[346979066,1735446648007,-870.4,0.00010958,2]
[346979068,1735446648016,-500.0,0.00010958,2]
[346979070,1735446648025,-1453.82,0.00010958,2]
[346979072,1735446648034,-151.0,0.00010959,2]
[346979074,1735446648044,-151.0,0.00010959,2]
[346979076,1735446648053,-151.0,0.00010959,2]
[346979077,1735446648062,-151.0,0.00010959,2]
[346979079,1735446648071,-151.0,0.00010959,2]
[346979082,1735446648081,-151.0,0.00010959,2]
[346979084,1735446648090,-151.0,0.00010959,2]
[346979086,1735446648099,-151.0,0.00010959,2]
[346979088,1735446648108,-292.533554,0.00010959,2]
[346979089,1735446648118,-151.0,0.00010959,2]
[346979091,1735446648128,-959.840012,0.00010959,2]
[346979094,1735446648138,-151.0,0.00010959,2]
[346979096,1735446648147,-959.840012,0.00010959,2]
[346979097,1735446648156,-151.0,0.00010959,2]
[346979099,1735446648166,-151.0,0.00010959,2]
[346979100,1735446648176,-151.0,0.00010959,2]
[346979102,1735446648185,-151.0,0.00010959,2]
[346979104,1735446648194,-313.648731,0.00010959,2]
[346979106,1735446648204,-313.648731,0.00010959,2]
[346979108,1735446648213,-234.037078,0.00010959,2]
[346979110,1735446648223,-234.037078,0.00010959,2]
[346979112,1735446648232,-313.648731,0.00010959,2]
[346979114,1735446648241,-313.648731,0.00010959,2]
[346979116,1735446648251,-151.0,0.00010959,2]
[346979118,1735446648259,-151.0,0.00010959,2]
[346979120,1735446648269,-160.9658,0.00010959,2]
[346979122,1735446648278,-160.9658,0.00010959,2]
[346979124,1735446648288,-160.9658,0.00010959,2]
[346979126,1735446648297,-160.9658,0.00010959,2]
[346979127,1735446648306,-241.250794,0.00010959,2]
[346979128,1735446648315,-241.250794,0.00010959,2]
[346979129,1735446648325,-241.250794,0.00010959,2]
[346979130,1735446648335,-241.250794,0.00010959,2]
[346979132,1735446648344,-151.0,0.00010959,2]
[346979134,1735446648355,-151.0,0.00010959,2]
[346979136,1735446648365,-170.208355,0.00010959,2]
[346979137,1735446648375,-170.208355,0.00010959,2]
[346979138,1735446648386,-238.924818,0.00010959,2]
[346979139,1735446648397,-238.924818,0.00010959,2]
[346979140,1735446648410,-170.208355,0.00010959,2]
[346979141,1735446648420,-238.924818,0.00010959,2]
[346979142,1735446648429,-170.208355,0.00010959,2]
[346979143,1735446648507,-238.924818,0.00010959,2]
[346979144,1735446648517,-151.0,0.00010959,2]
[346979145,1735446648527,-151.0,0.00010959,2]
[346979146,1735446648537,-151.0,0.00010959,2]
[346979148,1735446648548,-151.0,0.00010959,2]
[346979149,1735446648557,-151.0,0.00010959,2]
[346979151,1735446648567,-151.0,0.00010959,2]
[346979153,1735446648576,-151.0,0.00010959,2]
[346979155,1735446648585,-151.0,0.00010959,2]
[346979156,1735446648594,-151.0,0.00010959,2]
[346979158,1735446648604,-151.0,0.00010959,2]
[346979160,1735446648613,-197.142334,0.00010959,2]
[346979162,1735446648623,-197.142334,0.00010959,2]
[346979164,1735446648633,-151.0,0.00010959,2]
[346979166,1735446648642,-151.0,0.00010959,2]
[346979167,1735446648651,-197.142334,0.00010959,2]
[346979168,1735446648660,-197.142334,0.00010959,2]
[346979170,1735446648670,-151.0,0.00010959,2]
[346979171,1735446648679,-151.0,0.00010959,2]
[346979172,1735446648689,-151.0,0.00010959,2]
[346979173,1735446648699,-151.0,0.00010959,2]
[346979174,1735446648709,-289.259,0.00010959,2]
[346979175,1735446648719,-500.0,0.00010959,2]
[346979176,1735446648728,-151.0,0.00011,2]
[346979177,1735446648738,-2873.93020903,0.00011,2]
[346979178,1735446648748,-1551.59,0.00011091,2]
[346979179,1735446648757,-500.0,0.00011091,2]
[346979180,1735446648767,-582.92,0.00011091,2]
[346979181,1735446648776,-217.666756,0.00011091,2]
[346979182,1735446648786,-151.0,0.00011091,2]
[346979183,1735446648796,-151.0,0.00011091,2]
[346979184,1735446648805,-151.0,0.00011091,2]
[346979185,1735446648815,-151.0,0.00011092,2]
[346979186,1735446648824,-151.0,0.00011092,2]
[346979187,1735446648834,-959.840012,0.00011092,2]
[346979188,1735446648843,-151.0,0.00011092,2]
[346979189,1735446648853,-959.840012,0.00011092,2]
[346979190,1735446648862,-500.0,0.00011224,2]
[346979191,1735446648873,-637.54,0.00011224,2]
[346979192,1735446648885,-500.0,0.00011224,2]
[346979193,1735446648896,-1035.04,0.00011226,2]
[346979194,1735446648906,-594.07,0.00011226,2]
[346979195,1735446648916,-500.0,0.00011226,2]
[346979196,1735446648926,-500.0,0.00011226,2]
[346979197,1735446648935,-500.0,0.00011226,2]
[346979198,1735446648945,-593.08,0.00011226,2]
[346979199,1735446648954,-500.0,0.00011228,2]
[346979200,1735446648964,-301.80105987,0.00011228,2]
[346979201,1735446648973,-500.0,0.00011228,2]
[346979202,1735446648982,-500.0,0.00011228,2]
[346979203,1735446648992,-500.0,0.00011228,2]
[346979204,1735446649001,-383.444721,0.00011228,2]
[346979205,1735446649010,-500.0,0.00011228,2]
[346979206,1735446649019,-500.0,0.00011228,2]
[346979207,1735446649029,-11324.13,0.00011228,2]
[346979208,1735446649039,-500.0,0.00011228,2]
[346979209,1735446649048,-500.0,0.0001123,2]
[346979210,1735446649058,-500.0,0.00011231,2]
[346979211,1735446649068,-727.39,0.00011231,2]
[346979212,1735446649078,-500.0,0.00011232,2]
[346979213,1735446649087,-500.0,0.00011232,2]
[346979214,1735446649097,-500.0,0.00011232,2]
[346979215,1735446649106,-500.0,0.00011232,2]
[346979216,1735446649116,-500.0,0.00011232,2]
[346979217,1735446649126,-1453.82,0.00011232,2]
[346979218,1735446649136,-151.0,0.00011233,2]
[346979219,1735446649145,-151.0,0.00011233,2]
[346979220,1735446649154,-151.0,0.00011233,2]
[346979221,1735446649164,-151.0,0.00011233,2]
[346979222,1735446649173,-151.0,0.00011233,2]
[346979223,1735446649183,-151.0,0.00011233,2]
[346979225,1735446649192,-285.047819,0.00011233,2]
[346979227,1735446649201,-500.0,0.00011233,2]
[346979229,1735446649211,-197.142334,0.00011233,2]
[346979231,1735446649220,-197.142334,0.00011233,2]
[346979233,1735446649230,-1551.59,0.00011365,2]
[346979234,1735446649240,-500.0,0.00011365,2]
[346979236,1735446649249,-582.92,0.00011365,2]
[346979238,1735446649258,-500.0,0.00011498,2]
[346979239,1735446649268,-637.54,0.00011498,2]
[346979240,1735446649277,-500.0,0.00011498,2]
[346979241,1735446649287,-1035.04,0.000115,2]
[346979242,1735446649296,-594.07,0.000115,2]
[346979243,1735446649306,-500.0,0.000115,2]
[346979244,1735446649316,-528.0,0.000115,2]
[346979245,1735446649326,-500.0,0.000115,2]
[346979246,1735446649336,-593.08,0.000115,2]
[346979247,1735446649346,-500.0,0.00011502,2]
[346979248,1735446649356,-500.0,0.00011502,2]
[346979249,1735446649365,-500.0,0.00011502,2]
[346979250,1735446649376,-500.0,0.00011502,2]
[346979251,1735446649387,-159.83782104,0.00011502,2]
[346979252,1735446649397,-568.0133497,0.00011502,2]
[346979253,1735446649408,-11324.13,0.00011502,2]
[346979254,1735446649419,-500.0,0.00011502,2]
[346979255,1735446649429,-538.09,0.00011504,2]
[346979256,1735446649438,-500.0,0.00011504,2]
[346979257,1735446649448,-500.0,0.00011505,2]
[346979259,1735446649458,-727.39,0.00011505,2]
[346979260,1735446649467,-500.0,0.00011506,2]
[346979262,1735446649477,-500.0,0.00011506,2]
[346979263,1735446649486,-500.0,0.00011506,2]
[346979264,1735446649496,-443.02053533,0.00011506,2]
[346979265,1735446649505,-500.0,0.00011506,2]
[346979267,1735446649515,-1453.82,0.00011506,2]
[346979269,1735446649524,-500.0,0.00011507,2]
[346979270,1735446649533,-170.208355,0.00011568,2]
[346979271,1735446649543,-238.924818,0.00011568,2]
[346979272,1735446649551,-170.208355,0.00011568,2]
[346979273,1735446649561,-238.924818,0.00011568,2]
[346979274,1735446649571,-1551.59,0.00011639,2]
[346979275,1735446649581,-582.92,0.00011639,2]
[346979276,1735446649590,-500.0,0.00011772,2]
[346979277,1735446649599,-637.54,0.00011772,2]
[346979278,1735446649608,-500.0,0.00011772,2]
[346979279,1735446649618,-1035.04,0.00011774,2]
[346979280,1735446649627,-594.07,0.00011774,2]
[346979281,1735446649636,-500.0,0.00011774,2]
[346979282,1735446649646,-500.0,0.00011774,2]
[346979283,1735446649655,-593.08,0.00011774,2]
[346979284,1735446649664,-500.0,0.00011776,2]
[346979285,1735446649674,-500.0,0.00011776,2]
[346979286,1735446649684,-545.75,0.00011776,2]
[346979287,1735446649693,-551.39,0.00011776,2]
[346979288,1735446649703,-11324.13,0.00011776,2]
[346979289,1735446649712,-500.0,0.00011776,2]
[346979290,1735446649721,-505.08678835,0.00011778,2]
[346979291,1735446649730,-500.0,0.00011779,2]
[346979292,1735446649739,-727.39,0.00011779,2]
[346979293,1735446649749,-500.0,0.0001178,2]
[346979294,1735446649758,-151.0,0.0001178,2]
[346979295,1735446649767,-151.0,0.0001178,2]
[346979296,1735446649776,-151.0,0.0001178,2]
[346979297,1735446649785,-500.0,0.0001178,2]
[346979298,1735446649795,-500.0,0.0001178,2]
[346979299,1735446649804,-151.0,0.0001178,2]
[346979300,1735446649814,-151.0,0.0001178,2]
[346979301,1735446649823,-151.0,0.0001178,2]
[346979302,1735446649832,-500.0,0.0001178,2]
[346979303,1735446649842,-1453.82,0.0001178,2]
[346979304,1735446649851,-500.0,0.00011781,2]
[346979305,1735446649860,-1551.59,0.00011913,2]
[346979306,1735446649869,-582.92,0.00011913,2]
[346979307,1735446649879,-151.0,0.00012,2]
[346979308,1735446649888,-500.0,0.00012046,2]
[346979309,1735446649897,-637.54,0.00012046,2]
[346979310,1735446649907,-1035.04,0.00012048,2]
[346979311,1735446649916,-594.07,0.00012048,2]
[346979312,1735446649926,-500.0,0.00012048,2]
[346979313,1735446649935,-500.0,0.00012048,2]
[346979314,1735446649946,-593.08,0.00012048,2]
[346979315,1735446649955,-458.05,0.0001205,2]
[346979316,1735446649964,-500.0,0.0001205,2]
[346979317,1735446649975,-11324.13,0.0001205,2]
[346979318,1735446649984,-538.09,0.00012053,2]
[346979319,1735446649993,-500.0,0.00012053,2]
[346979320,1735446650003,-727.39,0.00012053,2]
[346979321,1735446650012,-500.0,0.00012054,2]
[346979322,1735446650022,-573.52,0.00012054,2]
[346979324,1735446650031,-500.0,0.00012054,2]
[346979325,1735446650040,-500.0,0.00012054,2]
[346979326,1735446650049,-1453.82,0.00012054,2]
[346979327,1735446650059,-151.0,0.00012055,2]
[346979328,1735446650069,-151.0,0.00012055,2]
[346979330,1735446650078,-313.648731,0.00012055,2]
[346979332,1735446650087,-234.037078,0.00012055,2]
[346979339,1735446650162,-313.648731,0.00012055,2]
[346979341,1735446650172,-151.452421,0.00012055,2]
[346979343,1735446650181,-160.9658,0.00012055,2]
[346979345,1735446650191,-160.9658,0.00012055,2]
[346979346,1735446650200,-241.250794,0.00012055,2]
[346979347,1735446650210,-241.250794,0.00012055,2]
[346979348,1735446650219,-152.131241,0.00012055,2]
[346979349,1735446650229,-500.0,0.00012055,2]
[346979350,1735446650238,-1551.59,0.00012187,2]
[346979351,1735446650248,-582.92,0.00012187,2]
[346979352,1735446650257,-521.98868813,0.0001232,2]
[346979353,1735446650266,-637.54,0.0001232,2]
[346979354,1735446650276,-1035.04,0.00012322,2]
[346979355,1735446650285,-594.07,0.00012322,2]
[346979356,1735446650295,-500.0,0.00012322,2]
[346979357,1735446650304,-151.0,0.00012322,2]
[346979358,1735446650313,-151.0,0.00012322,2]
[346979359,1735446650323,-151.0,0.00012322,2]
[346979360,1735446650332,-500.0,0.00012322,2]
[346979361,1735446650342,-593.08,0.00012322,2]
[346979362,1735446650351,-215.44,0.00012324,2]
[346979363,1735446650361,-11324.13,0.00012324,2]